bitfinex/quotes_ETHUSD_20250822
["timestamp","ask_amount","ask_price","bid_price","bid_amount"]
[1755893213196,37.368178,4843.4,4843.3,0.001]
[1755893213527,41.143178,4843.4,4843.3,0.001]
[1755893213829,37.368178,4843.4,4843.3,0.001]
[1755893214029,12.139178,4843.4,4843.3,0.001]
[1755893214330,25.07474154,4843.4,4843.3,0.001]
[1755893214897,37.368178,4843.4,4843.3,0.001]
[1755893215127,41.143178,4843.4,4843.3,0.001]
[1755893216629,54.07874154,4843.4,4843.3,0.001]
[1755893217618,54.16149554,4843.4,4843.3,0.001]
[1755893217818,50.38649554,4843.4,4843.3,0.001]
[1755893218034,54.16049554,4843.4,4843.3,0.001]
[1755893218433,58.18489486,4843.4,4843.3,0.001]
[1755893218850,58.10214086,4843.4,4843.3,0.001]
[1755893219447,58.10114086,4843.4,4843.3,0.001]
[1755893220728,41.141178,4843.4,4843.3,0.001]
[1755893221331,37.368178,4843.4,4843.3,0.001]
[1755893221522,38.140178,4843.4,4843.3,0.001]
[1755893221741,34.368178,4843.4,4843.3,0.001]
[1755893222051,3.964078,4843.4,4843.3,0.001]
[1755893222223,7.736078,4843.4,4843.3,0.3051]
[1755893222548,7.736078,4843.4,4843.3,0.001]
[1755893222917,7.736078,4843.4,4843.3,0.3051]
[1755893223148,1.8222,4843.4,4843.3,0.7415]
[1755893223315,5.5942,4843.4,4843.3,0.7415]
[1755893223518,5.49,4843.4,4843.3,0.7415]
[1755893224253,5.49,4843.4,4841.2,1.46694847]
[1755893224414,0.66,4843.2,4840.8,0.02]
[1755893224616,0.1032,4842.0,4841.2,0.1032]
[1755893224822,5.5942,4842.0,4840.8,0.02]
[1755893225137,6.7254,4842.0,4840.8,0.17550675]
[1755893225523,1.8232,4842.0,4840.8,0.17550675]
[1755893225743,5.5932,4842.0,4840.8,0.17550675]
[1755893226052,6.15252,4842.0,4840.8,0.02]
[1755893226252,6.15252,4842.0,4839.8,0.02040047]
[1755893226552,6.15252,4842.0,4840.7,0.1032]
[1755893226723,6.04932,4842.0,4840.7,0.1032]
[1755893226918,0.1032,4841.4,4840.7,0.1032]
[1755893227118,3.769,4841.3,4840.7,0.1032]
[1755893227325,4.15622,4841.3,4838.4,16.95996286]
[1755893227532,0.1032,4840.9,4840.2,0.1032]
[1755893227759,5.489,4840.8,4840.2,0.1032]
[1755893227935,5.489,4840.8,4840.2,0.2552668]
[1755893227936,3.768,4840.7,4840.2,0.2552668]
[1755893228260,3.768,4840.7,4840.3,0.02065987]
[1755893228417,1.72,4840.8,4840.6,0.1032]
[1755893228624,3.768,4840.7,4840.6,0.1032]
[1755893231432,3.767,4840.7,4840.6,0.1032]
[1755893232025,1.72,4840.8,4840.6,0.1032]
[1755893232231,3.766,4840.8,4840.6,0.1032]
[1755893233860,0.1032,4841.5,4840.7,0.02065816]
[1755893234061,0.1032,4841.5,4840.8,0.02065774]
[1755893234062,3.766,4841.4,4840.8,0.02065774]
[1755893234371,3.766,4841.4,4840.3,3.0]
[1755893234528,3.766,4841.4,4841.3,0.1032]
[1755893236659,1.72,4841.7,4841.3,0.1032]
[1755893236851,3.765,4841.6,4841.0,3.0]
[1755893237028,3.765,4841.6,4841.1,0.02065646]
[1755893237229,1.72,4841.7,4841.5,0.1032]
[1755893237455,3.764,4841.6,4841.5,0.1032]
[1755893238033,4.98049444,4841.6,4840.2,0.1563818]
[1755893238329,4.98049444,4841.6,4839.6,1.84033983]
[1755893238330,0.1032,4841.5,4840.8,0.1032]
[1755893238862,3.763,4841.4,4840.8,0.1032]
[1755893239563,0.4708,4841.3,4840.6,0.1032]
[1755893243150,0.297,4840.7,4840.6,0.1032]
[1755893243350,5.481,4840.7,4840.6,0.1032]
[1755893243552,5.48,4840.7,4840.6,0.1032]
[1755893243750,5.48,4840.7,4840.2,0.15154237]
[1755893244067,5.48,4840.7,4840.6,0.1032]
[1755893245777,6.2478,4840.7,4840.6,0.1032]
[1755893245965,6.87258,4840.7,4840.6,0.1032]
[1755893246561,6.10478,4840.7,4840.1,0.1032]
[1755893246768,6.10478,4840.7,4840.4,0.1032]
[1755893246769,3.759,4840.6,4840.4,0.1032]
[1755893247750,1.72,4840.7,4840.4,0.1032]
[1755893247973,0.002,4842.1,4840.5,0.1032]
[1755893247974,1.72,4841.3,4840.5,0.1032]
[1755893248173,3.758,4841.2,4840.2,0.66]
[1755893248494,3.758,4841.2,4839.6,0.001]
[1755893248674,3.50980013,4841.2,4840.9,0.1032]
[1755893248852,3.98060013,4841.2,4841.0,0.19176841]
[1755893249051,3.98060013,4841.2,4841.1,0.19176841]
[1755893249451,3.98060013,4841.2,4840.9,0.1032]
[1755893249777,3.98060013,4841.2,4841.0,0.19179541]
[1755893249949,3.98060013,4841.2,4841.1,0.19179541]
[1755893250151,1.72,4841.4,4841.1,0.19176625]
[1755893250461,1.72,4841.4,4841.2,0.191762]
[1755893250462,3.757,4841.3,4841.2,0.191762]
[1755893250658,1.72,4841.4,4841.3,0.1032]
[1755893250966,1.72,4841.4,4841.3,0.294962]
[1755893251149,5.477,4841.4,4841.3,0.294962]
[1755893251759,1.72,4841.4,4841.3,0.294962]
[1755893251970,5.477,4841.4,4841.3,0.294962]
[1755893252369,6.7925,4841.4,4841.3,0.294962]
[1755893252571,6.7925,4841.4,4839.3,0.10564562]
[1755893252777,0.1032,4840.8,4840.1,0.1032]
[1755893253083,6.3217,4841.4,4839.3,0.10564562]
[1755893253084,0.297,4840.2,4839.8,0.1032]
[1755893253285,5.9468,4840.1,4839.5,0.1032]
[1755893253584,1.72,4840.1,4839.5,0.1032]
[1755893253765,1.72,4840.1,4839.3,0.2381]
[1755893253766,3.756,4840.0,4839.3,0.2381]
[1755893253959,3.756,4840.0,4839.9,0.2883]
[1755893254160,3.756,4840.0,4839.9,0.3915]
[1755893255188,3.755,4840.0,4839.9,0.3915]
[1755893256081,1.72,4840.1,4839.9,0.1032]
[1755893256310,3.755,4840.0,4839.9,0.1032]
[1755893258020,5.0703,4840.0,4839.9,0.1032]
[1755893258688,5.0703,4840.0,4839.6,0.001]
[1755893258689,5.1735,4840.0,4839.6,0.001]
[1755893258889,0.1032,4839.7,4839.6,0.001]
[1755893259110,4.1532,4839.7,4839.6,0.001]
[1755893259518,4.624,4839.7,4839.6,0.001]
[1755893259721,5.31315,4839.7,4839.6,0.001]
[1755893260093,5.97315,4839.7,4839.6,0.001]
[1755893260321,0.66,4839.6,4839.3,0.001]
[1755893260508,0.66,4839.3,4838.8,0.021]
[1755893260827,0.4002,4838.9,4838.8,0.021]
[1755893260997,5.27702,4838.9,4838.8,0.021]
[1755893261420,5.74782,4838.9,4838.8,0.021]
[1755893263800,6.40782,4838.9,4838.8,0.021]
[1755893264621,6.40782,4838.9,4838.8,0.21236379]
[1755893265193,2.65582,4838.9,4838.8,0.21236379]
[1755893265393,6.40582,4838.9,4838.8,0.21236379]
[1755893266704,1.99582,4838.9,4838.8,0.21236379]
[1755893266908,1.72,4838.9,4838.8,0.21236379]
[1755893267103,5.47,4838.9,4838.8,0.50066379]
[1755893267631,5.47,4838.9,4838.8,0.3093]
[1755893267799,5.47,4838.9,4838.8,0.50036021]
[1755893267996,1.72,4838.9,4838.8,0.50036021]
[1755893268199,5.47,4838.9,4838.8,0.73946021]
[1755893268526,5.47,4838.9,4838.8,0.73942216]
[1755893268714,5.47,4838.9,4838.8,0.50032216]
[1755893269119,5.47,4838.9,4838.8,0.21202216]
[1755893269120,6.2015,4838.9,4838.8,0.21202216]
[1755893269430,1.8232,4838.9,4838.8,0.21202216]
[1755893269616,5.469,4838.9,4838.8,0.86302216]
[1755893270400,5.469,4838.9,4838.8,0.62392216]
[1755893270898,5.469,4838.9,4838.8,0.86302216]
[1755893272457,0.1032,4840.1,4838.9,0.66]
[1755893272624,1.721,4840.6,4840.0,0.3087]
[1755893272934,3.748,4840.5,4840.1,0.19102216]
[1755893273118,3.748,4840.5,4840.2,0.19102216]
[1755893273431,3.748,4840.5,4839.7,3.0]
[1755893273432,3.748,4840.5,4840.4,0.1032]
[1755893273610,3.748,4840.5,4840.4,0.29422216]
[1755893273934,3.748,4840.5,4840.4,0.60292216]
[1755893274128,3.748,4840.5,4840.4,0.7542226]
[1755893274330,1.721,4840.6,4840.4,0.7542226]
[1755893274529,1.721,4840.6,4840.5,0.19102216]
[1755893274731,5.468,4840.6,4840.5,0.73882216]
[1755893274931,5.468,4840.6,4840.5,0.49972216]
[1755893275434,5.468,4840.6,4840.5,0.84202216]
[1755893276014,5.468,4840.6,4840.5,0.60292216]
[1755893276740,6.1995,4840.6,4840.5,0.1032]
[1755893276945,6.1995,4840.6,4840.5,0.29405614]
[1755893277232,6.1995,4840.6,4840.5,0.29407661]
[1755893277438,6.1995,4840.6,4840.5,0.19087661]
[1755893277902,6.82977,4840.6,4840.5,0.19087661]
[1755893283216,6.82977,4840.6,4839.7,0.15216007]
[1755893283420,6.82977,4840.6,4839.8,0.19121496]
[1755893283720,6.82977,4840.6,4839.9,0.19121496]
[1755893283921,3.741,4840.5,4840.0,0.19121496]
[1755893284150,4.378857,4840.5,4840.1,0.19121496]
[1755893284349,4.378857,4840.5,4840.2,0.19121496]
[1755893284543,4.378857,4840.5,4840.3,0.19121496]
[1755893284742,4.378857,4840.5,4840.4,0.19121496]
[1755893284921,4.378857,4840.5,4840.4,0.19130279]
[1755893285522,5.110357,4840.5,4840.4,0.1913304]
[1755893286950,4.665157,4840.5,4840.4,0.1913304]
[1755893287155,1.721,4840.6,4840.4,0.5000304]
[1755893287473,3.74,4840.5,4840.4,0.3087]
[1755893287655,3.74,4840.5,4840.4,0.49990524]
[1755893287832,3.74,4840.5,4840.4,0.60310524]
[1755893288027,3.739,4840.5,4840.4,0.60310524]
[1755893289552,1.721,4840.6,4840.4,0.60310524]
[1755893289732,3.739,4840.5,4840.4,0.4119]
[1755893289935,3.739,4840.5,4840.4,0.60309822]
[1755893290236,3.738,4840.5,4840.4,0.60309822]
[1755893290442,1.721,4840.6,4840.4,0.60309822]
[1755893290741,1.721,4840.6,4840.5,0.19119822]
[1755893290928,5.459,4840.6,4840.5,0.49989822]
[1755893291129,5.459,4840.6,4840.5,0.73899822]
[1755893292243,5.458,4840.6,4840.5,0.73899822]
[1755893292557,5.20981933,4840.6,4840.5,0.73899822]
[1755893293848,5.20981933,4840.6,4840.5,0.75965724]
[1755893294046,5.20981933,4840.6,4840.5,2.2340248]
[1755893294246,3.736,4840.7,4840.5,0.75968107]
[1755893294451,1.61431268,4840.8,4840.7,3.0]
[1755893294652,1.72,4841.4,4840.7,5.22832134]
[1755893294845,1.72,4841.4,4841.3,19.95996286]
[1755893295051,3.736,4841.4,4841.3,20.56313319]
[1755893295289,0.002,4841.6,4841.4,3.0]
[1755893295440,3.737,4841.6,4841.5,0.52062508]
[1755893295775,0.002,4841.9,4841.5,2.22812981]
[1755893295987,0.002,4842.4,4842.1,3.0]
[1755893296189,0.002,4842.6,4842.3,0.4119]
[1755893296342,0.002,4842.6,4842.4,0.19127033]
[1755893296544,0.002,4842.6,4842.5,1.98721471]
[1755893296739,0.002,4842.6,4842.5,0.52062082]
[1755893296938,0.002,4842.6,4842.5,0.75972082]
[1755893297494,0.002,4842.6,4842.5,2.3584266]
[1755893297769,0.002,4842.6,4842.5,2.35827054]
[1755893298185,0.002,4842.6,4842.5,2.11953229]
[1755893298345,0.002,4842.6,4842.5,0.65335418]
[1755893300982,0.002,4842.6,4842.5,0.91310467]
[1755893301167,0.002,4842.6,4842.5,4.93400467]
[1755893301378,0.002,4842.6,4842.5,5.15245418]
[1755893301980,0.002,4842.6,4842.5,4.91335418]
[1755893302521,0.002,4843.6,4842.6,3.0]
[1755893302720,3.732,4843.6,4843.3,16.95996286]
[1755893303002,3.732,4843.6,4843.5,0.3995]
[1755893303165,0.002,4843.6,4843.5,0.5900296]
[1755893303579,0.02,4843.8,4843.5,0.61055216]
[1755893303778,0.02,4843.8,4843.6,0.19040594]
[1755893303961,0.02,4843.8,4843.7,0.48670594]
[1755893305898,0.11,4843.9,4843.7,0.72580594]
[1755893306102,0.11,4843.9,4843.8,0.19040594]
[1755893306298,0.11,4843.9,4843.8,0.48670594]
[1755893307009,0.11,4843.9,4843.8,0.58990594]
[1755893307164,0.11,4843.9,4843.8,0.58935793]
[1755893308203,0.11,4843.9,4843.8,7.31635793]
[1755893312086,0.11,4843.9,4843.8,7.31616485]
[1755893312637,0.11,4843.9,4843.8,7.31622022]
[1755893313621,0.11,4843.9,4843.8,7.03992022]
[1755893313798,0.3985,4843.9,4843.8,3.31292022]
[1755893313998,0.8637,4843.9,4843.8,3.31292022]
[1755893314794,0.11,4843.9,4843.8,3.31292022]
[1755893315023,0.11,4843.9,4843.8,7.57292022]
[1755893315024,0.8637,4843.9,4843.8,7.57292022]
[1755893316048,0.8637,4843.9,4843.8,4.57292022]
[1755893317088,0.11,4843.9,4843.8,7.86922022]
[1755893317320,0.11,4843.9,4843.8,11.59022022]
[1755893317523,0.002,4844.4,4843.9,3.0]
[1755893317693,0.002,4844.4,4844.0,0.18972022]
[1755893317893,0.002,4844.4,4844.3,0.1032]
[1755893318094,0.7557,4844.4,4844.3,0.29255228]
[1755893318837,0.2905,4844.4,4844.3,0.44565281]
[1755893319010,0.7557,4844.4,4844.3,0.44565281]
[1755893320207,0.002,4844.4,4844.3,0.44565281]
[1755893320403,0.7557,4844.4,4844.3,0.44565281]
[1755893321127,0.7557,4844.4,4844.3,0.44615194]
[1755893321423,0.002,4844.4,4844.3,0.46679475]
[1755893321924,0.002,4844.4,4844.3,0.44615194]
[1755893322323,0.002,4844.4,4844.3,0.46679475]
[1755893323020,0.002,4844.4,4844.3,0.44615194]
[1755893323225,0.002,4844.9,4844.3,29.36005761]
[1755893323427,0.002,4844.9,4844.8,0.1032]
[1755893323633,0.002,4844.9,4844.8,3.58935141]
[1755893323797,0.002,4844.9,4844.8,3.60999209]
[1755893324001,0.02,4845.8,4844.8,4.26999209]
[1755893324201,0.4852,4846.8,4845.8,4.9]
[1755893324509,1.719,4846.7,4845.9,0.18985141]
[1755893324723,0.68562,4846.6,4846.0,0.18985141]
[1755893325027,0.68562,4846.6,4844.9,4.46617811]
[1755893325028,0.4652,4846.5,4846.1,0.18985141]
[1755893325196,0.4652,4846.5,4846.2,0.02063472]
[1755893325401,0.2885,4846.2,4845.5,0.0206377]
[1755893325636,1.719,4846.7,4846.1,3.0]
[1755893325809,0.02,4846.8,4846.2,0.02063472]
[1755893326008,0.02,4846.8,4846.7,0.1032]
[1755893326233,0.7737,4846.8,4846.7,0.1032]
[1755893328328,0.7737,4846.8,4846.7,0.31720193]
[1755893328516,0.7737,4846.8,4846.7,0.1032]
[1755893328724,0.02,4846.8,4846.7,0.32117387]
[1755893329429,0.02,4847.8,4847.4,4.9]
[1755893329640,0.4324,4849.6,4848.0,1.24]
[1755893329940,0.4324,4849.6,4849.3,3.0]
[1755893330152,0.18466933,4849.6,4849.4,0.18974355]
[1755893330317,0.18466933,4849.6,4849.5,0.18974355]
[1755893330515,29.004,4851.2,4849.5,0.18974355]
[1755893330516,29.004,4851.2,4849.6,1.9]
[1755893330735,29.004,4851.2,4850.1,3.0]
[1755893331040,1.718,4851.6,4850.2,0.18974355]
[1755893331214,0.66,4851.5,4850.3,0.18974355]
[1755893331447,1.718,4850.7,4850.4,0.18974355]
[1755893331649,3.8868,4850.6,4850.5,0.18974355]
[1755893331950,4.1746,4850.6,4850.5,0.18974355]
[1755893332148,0.895,4850.6,4850.5,0.18974355]
[1755893332468,2.613,4850.6,4850.5,0.18974355]
[1755893334241,2.1806,4850.6,4850.5,0.18974355]
[1755893334442,0.7212,4850.6,4850.5,0.18974355]
[1755893334655,0.2888,4850.6,4850.5,0.18974355]
[1755893334852,0.7212,4850.6,4850.5,0.18974355]
[1755893339063,0.7212,4850.6,4850.5,0.18845805]
[1755893339587,0.8244,4850.6,4850.5,0.18841819]
[1755893339806,1.5026467,4850.6,4850.5,0.18841819]
[1755893339964,0.66,4850.5,4849.8,0.02]
[1755893340169,0.9488,4849.9,4849.8,0.02]
[1755893340482,2.109,4849.9,4848.8,0.02]
[1755893340661,1.3033,4849.8,4848.8,0.02]
[1755893340860,0.392,4848.9,4848.8,0.02]
[1755893341082,5.816,4848.9,4848.8,0.02]
[1755893341281,6.2484,4848.9,4848.8,0.02]
[1755893341671,2.5414,4848.9,4848.8,0.02]
[1755893341873,6.50254,4848.9,4848.8,0.02]
[1755893343211,7.16254,4848.9,4848.8,0.02]
[1755893343361,7.16254,4848.9,4847.8,0.02]
[1755893343362,0.66,4848.8,4847.8,0.02]
[1755893343703,0.392,4847.9,4847.8,0.02]
[1755893343907,5.815,4847.9,4847.8,0.02]
[1755893344055,3.1229,4847.9,4847.8,0.02]
[1755893344263,6.2474,4847.9,4847.8,0.02]
[1755893344508,6.9074,4847.9,4847.8,0.02]
[1755893345001,0.66,4847.8,4846.8,0.02]
[1755893345214,1.052,4846.9,4846.8,0.02]
[1755893345504,6.475,4846.9,4846.8,0.02]
[1755893345660,7.5549,4846.9,4846.8,0.02]
[1755893346964,39.5589,4846.9,4846.8,0.02]
[1755893347562,39.4557,4846.9,4846.8,0.02]
[1755893347760,39.4557,4846.9,4844.2,0.456]
[1755893347761,0.66,4846.8,4844.2,0.456]
[1755893348001,0.66,4846.6,4844.3,0.02064281]
[1755893348207,4.95799,4846.5,4844.8,0.02]
[1755893348914,1.25299,4846.5,4844.8,0.02]
[1755893349216,3.705,4846.4,4845.1,16.95996286]
[1755893349366,3.705,4846.4,4845.2,0.02063898]
[1755893349555,3.705,4846.4,4845.1,16.95996286]
[1755893349778,3.705,4846.3,4845.2,0.464]
[1755893350174,3.705,4846.3,4845.1,16.95996286]
[1755893350175,3.705,4846.3,4844.9,0.72511282]
[1755893350391,4.1374,4846.3,4844.8,0.74511282]
[1755893351170,3.705,4846.2,4844.9,0.464]
[1755893351365,3.705,4846.1,4844.9,0.464]
[1755893351594,1.718,4846.0,4844.9,0.464]
[1755893351809,1.718,4846.0,4844.9,1.18911282]
[1755893352097,1.718,4846.0,4845.0,0.1891435]
[1755893352294,3.705,4845.9,4845.1,0.1891435]
[1755893352471,3.705,4845.9,4845.2,0.1891435]
[1755893352673,3.705,4845.9,4845.3,0.1891435]
[1755893352868,3.705,4845.9,4845.4,0.1891435]
[1755893353195,3.705,4845.9,4845.5,0.1891435]
[1755893353500,3.705,4845.9,4845.6,0.1891435]
[1755893353679,3.705,4845.9,4845.7,0.1891435]
[1755893353879,3.705,4845.9,4845.8,0.1891435]
[1755893355786,1.718,4846.0,4845.8,0.4956435]
[1755893355993,1.718,4846.4,4845.9,0.1891435]
[1755893356200,29.004,4847.5,4845.8,17.73046286]
[1755893356201,5.422,4846.3,4846.0,0.18897142]
[1755893356484,3.704,4846.2,4846.1,0.18897142]
[1755893356690,1.718,4847.2,4846.2,0.3065]
[1755893356902,3.704,4847.1,4846.7,16.95996286]
[1755893357130,3.704,4847.1,4847.0,0.3065]
[1755893357288,3.704,4847.1,4847.0,0.49547142]
[1755893357725,3.704,4847.1,4847.0,0.59867142]
[1755893358222,3.704,4847.1,4847.0,1.03367142]
[1755893358745,1.718,4847.2,4847.0,1.03367142]
[1755893358894,0.4324,4848.5,4847.1,1.34908424]
[1755893358895,3.703,4847.3,4847.1,1.34908424]
[1755893359089,1.718,4847.9,4847.2,0.91867142]
[1755893359327,1.718,4847.9,4847.3,0.18873892]
[1755893359328,3.703,4847.8,4847.3,0.18873892]
[1755893359547,3.703,4847.8,4847.4,17.16933139]
[1755893359823,3.703,4848.0,4847.7,0.3979]
[1755893359992,3.703,4848.0,4847.8,0.18873892]
[1755893360190,3.703,4848.0,4847.9,0.18873892]
[1755893360528,3.703,4848.3,4847.9,0.48343892]
[1755893360823,4.1722,4848.2,4847.1,0.72511282]
[1755893361018,0.2876,4848.0,4847.5,0.1032]
[1755893361238,0.1032,4847.4,4847.1,0.72511282]
[1755893361401,0.2876,4847.2,4846.8,1.08958506]
[1755893361610,0.1032,4846.9,4846.8,1.08958506]
[1755893361928,6.28,4846.9,4846.1,1.55901326]
[1755893362132,6.908,4846.9,4846.1,1.55901326]
[1755893362747,6.908,4846.9,4846.1,0.1032]
[1755893364433,6.908,4846.9,4846.0,0.001]
[1755893364434,0.4692,4846.8,4846.0,0.001]
[1755893364603,0.2876,4846.1,4846.0,0.001]
[1755893364930,3.701,4846.1,4846.0,0.001]
[1755893365136,3.701,4846.1,4846.0,0.3989]
[1755893367010,3.701,4846.1,4846.0,0.1042]
[1755893367411,3.701,4846.1,4846.0,0.83031417]
[1755893367598,3.701,4846.1,4846.0,0.1042]
[1755893367801,4.8279,4846.1,4846.0,0.1042]
[1755893368105,1.1269,4846.1,4846.0,0.001]
[1755893368317,4.4568,4846.1,4846.0,0.001]
[1755893369373,10.4868,4846.1,4846.0,0.001]
[1755893369558,6.7868,4846.1,4846.0,0.001]
[1755893369757,10.4868,4846.1,4846.0,0.001]
[1755893369961,39.4908,4846.1,4846.0,0.001]
[1755893370299,41.632678,4846.1,4846.0,0.001]
[1755893371064,44.632678,4846.1,4846.0,0.001]
[1755893375466,44.95578036,4846.1,4846.0,0.001]
[1755893377668,44.95478036,4846.1,4846.0,0.001]
[1755893377975,45.05798036,4846.1,4846.0,0.001]
[1755893378460,44.734878,4846.1,4846.0,0.001]
[1755893378971,40.375878,4846.1,4846.0,0.001]
[1755893379143,39.014701,4846.1,4846.0,0.19070185]
[1755893379342,39.014701,4846.1,4846.0,0.001]
[1755893379548,42.592,4846.1,4846.0,0.001]
[1755893383791,4.16,4846.0,4845.0,0.001]
[1755893384090,0.9476,4845.1,4845.0,0.001]
[1755893384483,4.6446,4845.1,4845.0,0.001]
[1755893384793,5.1138,4845.1,4845.0,0.001]
[1755893384952,1.4168,4845.1,4845.0,0.001]
[1755893385157,5.72738,4845.1,4845.0,0.001]
[1755893385850,8.72738,4845.1,4845.0,0.001]
[1755893386055,37.73138,4845.1,4845.0,0.001]
[1755893386457,54.68121691,4845.1,4845.0,0.001]
[1755893389355,54.76393991,4845.1,4845.0,0.001]
[1755893389555,54.76293991,4845.1,4845.0,0.001]
[1755893390556,54.76293991,4845.1,4844.8,0.02]
[1755893390557,3.66,4845.0,4844.8,0.02]
[1755893390756,20.60983691,4843.9,4843.3,0.001]
[1755893390964,16.1608,4843.8,4843.3,0.001]
[1755893391168,16.6028,4843.8,4843.3,0.001]
[1755893391354,3.524762,4843.7,4843.3,0.001]
[1755893391577,0.9628,4843.4,4843.3,0.001]
[1755893391780,9.6923562,4843.4,4843.3,0.001]
[1755893392075,39.1383562,4843.4,4843.3,0.001]
[1755893392275,39.29199674,4843.4,4843.3,0.001]
[1755893392479,35.59699674,4843.4,4843.3,0.001]
[1755893392799,38.3935562,4843.4,4843.3,0.001]
[1755893393893,38.4967562,4843.4,4843.3,0.001]
[1755893394202,39.2415562,4843.4,4843.3,0.001]
[1755893395997,39.3243022,4843.4,4843.3,0.001]
[1755893397062,39.2415562,4843.4,4843.3,0.001]
[1755893397261,38.7995562,4843.4,4843.3,0.001]
[1755893398013,35.1045562,4843.4,4843.3,0.001]
[1755893398308,38.4967562,4843.4,4843.3,0.001]
[1755893398893,38.7995562,4843.4,4843.3,0.001]
[1755893399105,38.4967562,4843.4,4843.3,0.001]
[1755893399638,38.4957562,4843.4,4843.3,0.001]
[1755893399938,34.8017562,4843.4,4843.3,0.001]
[1755893400227,38.4957562,4843.4,4843.3,0.001]
[1755893400520,35.4957562,4843.4,4843.3,0.3147]
[1755893400897,35.4957562,4843.4,4843.3,0.19102423]
[1755893401504,31.8017562,4843.4,4843.3,0.19102423]
[1755893401736,31.8017562,4843.4,4843.3,0.001]
[1755893402030,34.8357562,4843.4,4843.3,0.95718327]
[1755893402639,35.4957562,4843.4,4843.3,0.95718327]
[1755893402866,32.1045562,4843.4,4843.3,0.19108327]
[1755893402997,32.1045562,4843.4,4841.9,0.001]
[1755893402998,0.66,4842.0,4841.9,0.001]
[1755893403193,0.66,4841.6,4840.8,0.02]
[1755893403415,3.66,4841.4,4840.8,0.02]
[1755893403728,9.3718,4841.5,4839.8,0.02]
[1755893403729,4.16,4840.8,4839.8,0.02]
[1755893403927,19.07583691,4840.9,4839.8,0.02]
[1755893403928,21.01583691,4839.9,4839.8,0.02]
[1755893404092,22.73583691,4839.9,4839.8,0.02]
[1755893404291,11.318078,4839.9,4839.8,0.02]
[1755893404500,9.1762,4839.9,4839.8,0.02]
[1755893404922,9.0755,4839.9,4839.8,0.02]
[1755893405221,5.3825,4839.9,4839.8,0.3337]
[1755893405421,9.0755,4839.9,4839.8,0.3337]
[1755893405724,6.0755,4839.9,4839.8,0.7861]
[1755893406900,16.0755,4839.9,4839.8,0.7861]
[1755893407111,12.3825,4839.9,4839.8,0.7861]
[1755893407292,16.0765,4839.9,4839.8,0.7861]
[1755893407494,10.0,4839.9,4839.8,0.7861]
[1755893407799,9.34371775,4839.9,4839.8,0.7861]
[1755893408004,3.694,4840.3,4839.9,3.0]
[1755893408205,0.32346679,4842.2,4839.9,3.0]
[1755893408206,3.694,4840.2,4839.9,3.0]
[1755893408403,3.694,4840.3,4840.0,0.02066115]
[1755893408589,3.694,4840.3,4839.9,3.0]
[1755893408793,1.72,4841.2,4839.9,3.0]
[1755893408992,3.693,4841.1,4839.9,3.0]
[1755893409910,3.693,4841.1,4839.8,14.04003686]
[1755893409911,3.693,4841.1,4839.8,0.02]
[1755893410113,0.66,4841.0,4839.8,0.02]
[1755893410316,4.3013,4840.9,4839.8,0.02]
[1755893411033,0.66,4840.6,4839.8,0.02]
[1755893411217,0.66,4840.4,4839.8,0.02]
[1755893411530,3.694,4840.5,4839.8,0.02]
[1755893411531,0.66,4840.2,4839.8,0.02]
[1755893411740,0.9628,4839.9,4839.8,0.02]
[1755893412028,3.66,4839.8,4838.8,0.021]
[1755893412227,7.353,4839.8,4838.8,0.021]
[1755893412401,0.66,4839.6,4838.8,0.021]
[1755893412598,0.66,4839.4,4838.8,0.021]
[1755893412794,1.72,4839.3,4838.8,0.021]
[1755893413104,0.832,4839.2,4838.8,0.021]
[1755893413530,3.693,4839.1,4838.8,0.021]
[1755893413705,3.693,4839.0,4838.8,0.021]
[1755893415150,1.4048,4838.9,4838.8,0.021]
[1755893415905,11.4048,4838.9,4838.8,0.021]
[1755893416558,18.0978,4838.9,4837.3,0.001]
[1755893416706,3.66,4838.7,4837.3,0.001]
[1755893416909,10.66,4837.9,4837.3,0.001]
[1755893417109,16.3768,4837.9,4837.3,0.001]
[1755893417313,3.66,4837.8,4835.8,0.021]
[1755893417561,0.66,4837.3,4835.8,0.021]
[1755893417855,0.7632,4836.9,4835.8,0.021]
[1755893418013,2.62652,4836.9,4835.8,0.021]
[1755893418426,6.31952,4836.9,4835.8,0.021]
[1755893418632,6.77082,4836.9,4835.8,0.021]
[1755893419415,6.31952,4836.9,4835.8,0.021]
[1755893420011,12.381,4836.9,4835.8,0.021]
[1755893420208,15.5172,4836.9,4835.8,0.021]
[1755893421033,5.5172,4836.9,4835.8,0.021]
[1755893421631,5.5182,4836.9,4836.1,0.021]
[1755893424046,5.5182,4836.9,4836.8,0.0547]
[1755893424947,5.414,4836.9,4836.8,0.0757]
[1755893425146,5.414,4836.9,4836.8,0.0547]
[1755893426212,5.414,4836.9,4836.8,0.0757]
[1755893426922,1.721,4836.9,4836.8,0.0757]
[1755893427340,5.415,4836.9,4836.8,0.0757]
[1755893427647,1.721,4836.9,4836.8,0.1789]